bitfinex/quotes_ETHUSD_20240707
["timestamp","ask_amount","ask_price","bid_price","bid_amount"]
[1720323633169,1.02065283,3057.4,3057.3,2.2896]
[1720323633380,1.02065283,3057.4,3057.3,2.982767]
[1720323634584,1.02065283,3057.4,3057.3,5.272367]
[1720323635670,0.0883578,3057.5,3057.4,4.57904]
[1720323636071,1.44873044,3057.5,3057.4,4.57904]
[1720323636312,4.00804339,3057.5,3057.4,4.57904]
[1720323636511,5.15153939,3057.5,3057.4,4.57904]
[1720323636814,7.34239938,3057.5,3057.4,2.28952]
[1720323639084,7.34242723,3057.5,3057.4,2.28952]
[1720323639590,9.04322433,3057.5,3057.4,2.28952]
[1720323639812,7.34242723,3057.5,3057.4,2.28952]
[1720323640514,9.04322433,3057.5,3057.4,2.28952]
[1720323641095,4.92372723,3057.5,3057.4,2.28952]
[1720323641878,5.15279585,3057.5,3057.4,2.28952]
[1720323642393,5.15274779,3057.5,3057.4,2.28952]
[1720323642822,5.15274491,3057.5,3057.4,2.28952]
[1720323644029,4.92362878,3057.5,3057.4,2.28952]
[1720323644182,4.92363933,3057.5,3057.4,2.28952]
[1720323645413,6.62571777,3057.5,3057.4,2.28952]
[1720323645615,2.36429406,3057.5,3057.4,2.28952]
[1720323645793,4.34968438,3057.5,3057.4,2.28952]
[1720323645993,6.62562064,3057.5,3057.4,2.28952]
[1720323646200,6.62562064,3057.5,3057.4,2.28807563]
[1720323646381,4.92364019,3057.5,3057.4,2.28807563]
[1720323646585,3.79118615,3057.5,3057.4,2.28807563]
[1720323646984,4.92364132,3057.5,3057.4,2.28807563]
[1720323647420,3.79118615,3057.5,3057.4,2.28807563]
[1720323647823,4.92363543,3057.5,3057.4,2.28807563]
[1720323648399,3.79118615,3057.5,3057.4,2.28807563]
[1720323648604,4.92363528,3057.5,3057.4,2.28807563]
[1720323648815,2.36429406,3057.5,3057.4,2.28807563]
[1720323649025,3.79116786,3057.5,3057.4,2.28807563]
[1720323649211,5.15318678,3057.5,3057.4,2.28807563]
[1720323650637,5.15318678,3057.5,3057.4,4.57759563]
[1720323652110,3.72631298,3057.5,3057.4,4.57759563]
[1720323652310,5.15311522,3057.5,3057.4,4.57759563]
[1720323652833,5.15312292,3057.5,3057.4,4.57759563]
[1720323655570,5.15311514,3057.5,3057.4,4.57759563]
[1720323658768,2.36429406,3057.5,3057.4,4.57759563]
[1720323659061,5.15316552,3057.5,3057.4,5.27059519]
[1720323659566,3.79110471,3057.5,3057.4,5.27059519]
[1720323660756,1.10995522,3057.5,3057.4,5.27059519]
[1720323661566,1.10996636,3057.5,3057.4,5.27059519]
[1720323661794,2.87721909,3057.5,3057.4,5.27059519]
[1720323662062,5.15303424,3057.5,3057.4,5.27059519]
[1720323662542,3.72623376,3057.5,3057.4,5.27059519]
[1720323662866,1.10983638,3057.5,3057.4,5.27059519]
[1720323663467,1.10983638,3057.5,3057.4,4.57759563]
[1720323663784,2.87723096,3057.5,3057.4,4.57759563]
[1720323663984,3.79101016,3057.5,3057.4,4.57759563]
[1720323664498,2.36419781,3057.5,3057.4,4.57759563]
[1720323664703,3.79110475,3057.5,3057.4,4.57759563]
[1720323664986,6.6258654,3057.5,3057.4,4.57759563]
[1720323665351,6.6258654,3057.5,3057.4,2.28807563]
[1720323667662,4.06648938,3057.5,3057.4,2.28807563]
[1720323667879,4.92361499,3057.5,3057.4,2.28807563]
[1720323668166,6.62543803,3057.5,3057.4,2.28807563]
[1720323669704,6.62543803,3057.5,3057.2,2.28965]
[1720323669705,2.3246,3057.4,3057.2,2.28965]
[1720323669887,6.5369586,3057.3,3057.2,2.28965]
[1720323670411,4.83525719,3057.3,3057.2,2.28965]
[1720323670768,6.5369586,3057.3,3057.2,2.28965]
[1720323670968,2.27584001,3057.3,3057.2,2.28965]
[1720323671169,4.83548814,3057.3,3057.2,2.28965]
[1720323671366,2.27584001,3057.3,3057.2,2.28965]
[1720323671597,3.70285051,3057.3,3057.2,2.28965]
[1720323672804,3.70284622,3057.3,3057.2,2.28965]
[1720323673466,6.53680491,3057.3,3057.2,2.28965]
[1720323674209,2.27584001,3057.3,3057.2,2.28965]
[1720323674366,3.70287671,3057.3,3057.2,2.28965]
[1720323674869,5.06406985,3057.3,3057.2,2.28965]
[1720323677628,5.06399657,3057.3,3057.2,2.28965]
[1720323678292,3.70280343,3057.3,3057.2,2.28965]
[1720323678821,5.06387829,3057.3,3057.2,2.28965]
[1720323679029,5.40419114,3057.3,3057.2,2.28965]
[1720323679207,3.70280343,3057.3,3057.2,2.28965]
[1720323679714,3.70280343,3057.3,3057.1,2.28974]
[1720323679715,5.40419114,3057.3,3057.1,2.28974]
[1720323679887,7.46074591,3057.2,3057.1,2.28974]
[1720323680096,7.46070554,3057.2,3057.1,2.28974]
[1720323680805,6.03374212,3057.2,3057.1,2.28974]
[1720323681004,7.46083091,3057.2,3057.1,2.28974]
[1720323681205,6.0994314,3057.2,3057.1,2.28974]
[1720323681598,6.16499592,3057.2,3057.1,2.28974]
[1720323681997,6.0994314,3057.2,3057.1,2.28974]
[1720323682235,7.46064617,3057.2,3057.1,2.28974]
[1720323682435,7.46067925,3057.2,3057.1,2.28974]
[1720323683633,6.09943852,3057.2,3057.1,2.28974]
[1720323684001,7.46058259,3057.2,3057.1,2.28974]
[1720323684208,7.46058282,3057.2,3057.1,2.28974]
[1720323684708,7.46058282,3057.2,3056.9,2.28988]
[1720323684925,5.12964734,3057.1,3056.9,2.28988]
[1720323685224,5.06408282,3057.0,3056.9,2.28988]
[1720323685647,5.06408282,3057.0,3056.7,2.29]
[1720323685812,5.06408282,3056.9,3056.7,2.29]
[1720323686010,5.06408282,3056.8,3056.7,2.29]
[1720323686240,7.46058282,3056.8,3056.7,2.29]
[1720323686739,2.27584001,3056.8,3056.7,2.29]
[1720323687239,1.02088006,3056.8,3056.7,2.29]
[1720323687442,0.06556452,3056.9,3056.7,2.29]
[1720323687631,1.02071799,3056.8,3056.7,2.29]
[1720323690551,1.02071799,3056.9,3056.8,2.28997]
[1720323693647,3.48278251,3057.0,3056.9,2.2899]
[1720323693841,1.08628251,3057.0,3056.9,2.2899]
[1720323694051,1.08582565,3057.1,3056.9,2.2899]
[1720323694554,1.08580556,3057.1,3056.9,2.2899]
[1720323696254,1.86842763,3057.1,3056.9,2.2899]
[1720323697229,1.02024104,3057.0,3056.9,2.2899]
[1720323697830,2.27635864,3057.0,3056.9,2.2899]
[1720323698720,1.02052058,3057.0,3056.9,2.2899]
[1720323700959,2.73113977,3057.2,3056.9,2.2899]
[1720323701163,2.73113977,3057.2,3057.0,2.28982]
[1720323701164,2.2763516,3057.1,3057.0,2.28982]
[1720323701344,3.40899947,3057.1,3057.0,2.28982]
[1720323701546,2.2763516,3057.1,3057.0,2.28982]
[1720323701963,2.2763146,3057.1,3057.0,2.28982]
[1720323702161,3.40895538,3057.1,3057.0,2.28982]
[1720323702369,2.2763146,3057.1,3057.0,2.28982]
[1720323702531,1.02053981,3057.1,3057.0,2.28982]
[1720323702732,5.07301756,3057.2,3056.9,2.2899]
[1720323702933,1.02049559,3057.0,3056.9,4.5798]
[1720323704847,1.02049559,3057.0,3056.9,2.2899]
[1720323705759,3.92067509,3057.0,3056.9,2.2899]
[1720323705961,6.19700427,3057.0,3056.9,2.2899]
[1720323707357,2.27632918,3057.0,3056.9,2.2899]
[1720323707545,6.28259513,3057.0,3056.9,2.2899]
[1720323707754,8.55892431,3057.0,3056.9,2.2899]
[1720323708232,7.19790113,3057.0,3056.9,2.2899]
[1720323708843,9.14051914,3057.0,3056.9,2.2899]
[1720323709049,9.14051914,3057.0,3056.6,2.29011]
[1720323709241,1.36162994,3056.7,3056.6,2.29011]
[1720323709437,3.98706641,3056.7,3056.6,2.29011]
[1720323709765,6.26339559,3056.7,3056.6,2.29011]
[1720323710759,6.26360228,3056.7,3056.6,2.29011]
[1720323711167,6.26365257,3056.7,3056.6,2.29011]
[1720323711677,9.51761379,3056.7,3056.6,2.29011]
[1720323712262,9.51760136,3056.7,3056.6,2.29011]
[1720323714077,9.51759461,3056.7,3056.6,2.29011]
[1720323716156,8.38477516,3056.7,3056.6,2.29011]
[1720323717378,8.38475724,3056.7,3056.6,2.29011]
[1720323720544,8.38477526,3056.7,3056.4,4.58047]
[1720323720744,1.02113134,3056.6,3056.4,2.29022]
[1720323721297,1.02113134,3056.5,3056.4,2.29022]
[1720323721461,1.42741738,3056.5,3056.2,2.29039]
[1720323721665,1.02110892,3056.3,3056.2,2.29039]
[1720323722686,1.02110892,3056.4,3056.2,2.29039]
[1720323722983,0.68056928,3056.3,3056.2,2.29039]
[1720323723156,1.02110892,3056.4,3056.2,2.29039]
[1720323724062,1.02110892,3056.4,3056.3,2.29035]
[1720323724268,1.02072568,3056.4,3056.3,2.29035]
[1720323725391,1.42713226,3056.5,3056.4,2.29027]
[1720323725392,1.02072568,3056.5,3056.4,2.29027]
[1720323725725,1.02070006,3056.6,3056.5,2.2902]
[1720323725879,1.02073274,3056.6,3056.5,2.2902]
[1720323726272,1.36156774,3056.7,3056.5,2.2902]
[1720323726498,2.2766984,3056.6,3056.5,2.2902]
[1720323726669,1.02065436,3056.6,3056.5,2.2902]
[1720323728407,2.27665972,3056.6,3056.4,2.29026]
[1720323728581,1.36156774,3056.7,3056.6,2.29012]
[1720323728783,5.06551999,3056.7,3056.6,2.29012]
[1720323729404,2.4815,3056.6,3056.0,2.29052]
[1720323729609,1.02037463,3056.1,3056.0,2.29052]
[1720323729783,2.31749951,3056.2,3056.0,2.29052]
[1720323729981,2.27701279,3056.1,3056.0,2.29052]
[1720323730771,5.06501874,3056.1,3056.0,2.29052]
[1720323731209,2.27701279,3056.1,3056.0,2.29052]
[1720323731410,2.27701279,3056.1,3055.8,2.29065]
[1720323731574,1.02004853,3056.0,3055.9,2.29063]
[1720323732978,1.02004853,3056.1,3055.9,2.29063]
[1720323733395,1.02004853,3056.0,3055.9,2.29063]
[1720323734270,1.02004853,3056.1,3055.9,2.29063]
[1720323734476,1.02004853,3056.1,3055.6,2.29086]
[1720323734477,1.02004853,3056.1,3055.7,2.29076]
[1720323734675,0.67947599,3055.8,3055.7,2.29076]
[1720323735422,0.67947599,3055.8,3055.4,2.29099]
[1720323735423,1.02004853,3055.8,3055.4,2.29099]
[1720323735577,0.67927382,3055.7,3055.4,2.29099]
[1720323737210,0.67927382,3055.8,3055.4,2.29099]
[1720323737417,0.67927382,3055.8,3055.5,2.29092]
[1720323739485,0.06556452,3055.9,3055.5,2.29092]
[1720323739692,0.67868585,3055.8,3055.5,2.29092]
[1720323740321,0.74425037,3055.9,3055.5,2.29092]
[1720323740626,0.74425037,3055.9,3055.6,2.3799]
[1720323740924,0.67868585,3055.9,3055.6,2.3799]
[1720323741241,0.74425037,3056.0,3055.6,2.3799]
[1720323741530,0.74425037,3056.0,3055.7,2.29079]
[1720323741831,0.67868585,3055.9,3055.7,2.29079]
[1720323742029,0.74425037,3056.0,3055.7,2.29079]
[1720323742333,0.06556452,3056.0,3055.7,2.29079]
[1720323742503,0.74413092,3056.0,3055.7,2.29079]
[1720323743230,0.6785664,3055.9,3055.7,2.29079]
[1720323743701,0.74413092,3056.0,3055.7,2.29079]
[1720323745026,0.6785664,3055.9,3055.7,2.29079]
[1720323745209,0.74413092,3056.0,3055.7,2.29079]
[1720323746407,0.6785664,3055.9,3055.7,2.29079]
[1720323747003,0.06556452,3056.0,3055.7,2.29079]
[1720323747004,0.6785664,3056.0,3055.7,2.29079]
[1720323747239,1.01784961,3056.1,3055.7,2.29079]
[1720323747240,0.6785664,3056.1,3055.7,2.29079]
[1720323748917,0.6785664,3056.0,3055.9,2.29065]
[1720323749915,0.6785664,3056.1,3055.9,2.29065]
[1720323751135,0.6785664,3056.0,3055.9,2.29065]
[1720323752457,2.3745,3055.9,3055.5,2.29094]
[1720323752664,0.74456593,3055.8,3055.5,2.29094]
[1720323752839,0.67900141,3055.7,3055.5,2.29094]
[1720323753039,0.74456593,3055.8,3055.5,2.29094]
[1720323754560,0.74456593,3055.8,3055.6,2.29085]
[1720323754766,0.74456593,3055.8,3055.7,2.2908]
[1720323754767,0.67900141,3055.8,3055.7,2.2908]
[1720323755068,0.67900141,3055.9,3055.7,2.2908]
[1720323755238,0.67900141,3056.0,3055.9,2.29065]
[1720323758671,0.74456593,3056.1,3056.0,2.29057]
[1720323759156,0.06556452,3056.1,3056.0,2.29057]
[1720323759336,1.08341413,3056.1,3056.0,2.29057]
[1720323759530,2.21642846,3056.1,3056.0,2.29057]
[1720323760332,0.06556452,3056.1,3056.0,2.29057]
[1720323761469,2.21642473,3056.1,3056.0,2.29057]
[1720323761963,1.08341413,3056.1,3056.0,2.29057]
[1720323762439,2.21643325,3056.1,3056.0,2.29057]
[1720323764349,6.26047102,3056.1,3056.0,2.29057]
[1720323765387,4.71719666,3056.1,3056.0,2.29057]
[1720323765576,8.01525996,3056.1,3055.5,2.2909]
[1720323765782,0.67964594,3055.6,3055.5,2.2909]
[1720323766273,1.01946891,3055.6,3055.5,2.2909]
[1720323766672,1.01946891,3055.6,3055.4,2.29101]
[1720323766843,2.15266816,3055.6,3055.4,2.29101]
[1720323767034,1.01946891,3055.6,3055.5,2.29095]
[1720323767236,2.15267539,3055.6,3055.5,2.29095]
[1720323767868,1.01946891,3055.6,3055.5,2.29095]
[1720323771568,1.08503343,3055.7,3055.5,2.29095]
[1720323772778,1.01946891,3055.6,3055.5,2.29095]
[1720323773655,1.01946891,3055.7,3055.6,2.29087]
[1720323773866,3.29702409,3055.7,3055.6,2.29087]
[1720323774067,1.4248564,3055.8,3055.6,2.29087]
[1720323774276,2.27731002,3055.7,3055.6,2.29087]
[1720323774797,5.06434574,3055.7,3055.6,2.29087]
[1720323774961,2.78703572,3055.7,3055.6,2.29087]
[1720323775161,3.70505386,3055.7,3055.6,2.29087]
[1720323775400,5.40485372,3055.7,3055.6,2.29087]
[1720323775606,5.06531221,3055.7,3055.6,2.29087]
[1720323777823,3.77061838,3055.7,3055.6,2.29087]
[1720323778227,2.34287454,3055.7,3055.6,2.29087]
[1720323778527,3.7051307,3055.7,3055.6,2.29087]
[1720323778728,3.77069512,3055.7,3055.6,2.29087]
[1720323781392,5.13102794,3055.7,3055.6,2.29087]
[1720323781596,3.77069512,3055.7,3055.6,2.29087]
[1720323782625,5.13087007,3055.7,3055.6,2.29087]
[1720323782828,3.77069512,3055.7,3055.6,2.29087]
[1720323783349,5.13079695,3055.7,3055.6,2.29087]
[1720323784000,3.70297637,3055.7,3055.6,2.29087]
[1720323784249,5.13077555,3055.7,3055.6,2.29087]
[1720323784538,3.77067372,3055.7,3055.6,2.29087]
[1720323784836,5.06492199,3055.7,3055.6,2.29087]
[1720323785051,3.63712281,3055.7,3055.6,2.29087]
[1720323785337,2.27732451,3055.7,3055.6,2.29087]
[1720323785530,1.01993833,3055.7,3055.6,2.29087]
[1720323785733,2.27731264,3055.7,3055.6,2.29087]
[1720323785937,2.27730273,3055.7,3055.6,2.29087]
[1720323786138,1.01985834,3055.7,3055.6,7.51637974]
[1720323786443,0.67990501,3055.9,3055.8,4.58144]
[1720323786730,0.67990501,3056.0,3055.9,4.5813]
[1720323787143,0.67990501,3056.0,3055.7,4.7018]
[1720323787144,0.06556452,3056.5,3056.3,2.29027]
[1720323787325,2.78732403,3056.4,3056.3,2.29027]
[1720323787499,5.06412686,3056.4,3056.3,2.29027]
[1720323788745,2.27684127,3056.4,3056.3,2.29027]
[1720323789549,1.18154347,3056.4,3056.3,2.29027]
[1720323791232,1.18154347,3056.4,3056.3,4.58062]
[1720323791429,0.162,3056.4,3056.3,4.58062]
[1720323791741,0.162,3056.4,3056.3,5.266252]
[1720323793759,0.162,3056.4,3056.3,8.3316826]
[1720323794257,0.162,3056.4,3056.3,10.6220326]
[1720323794746,0.162,3056.4,3056.3,8.266252]
[1720323800877,0.162,3056.4,3056.3,10.517552]
[1720323801178,0.162,3056.4,3056.3,12.807902]
[1720323816017,0.162,3056.4,3056.3,15.648252]
[1720323823994,0.162,3056.4,3056.3,16.92696766]
[1720323828186,2.3552,3057.3,3056.9,2.2899]
[1720323828387,2.3552,3057.3,3057.2,4.57934]
[1720323831388,3.03226658,3057.3,3057.2,4.57934]
[1720323831963,2.3552,3057.3,3057.2,4.57934]
[1720323832164,3.03226658,3057.3,3057.2,4.57934]
[1720323832575,0.67706658,3057.3,3057.2,4.57934]
[1720323832896,0.67987505,3057.4,3057.3,4.5792]
[1720323833112,0.67991177,3057.4,3057.3,2.2896]
[1720323833617,1.10822546,3057.5,3057.4,4.57904]
[1720323833779,0.0883578,3057.5,3057.4,4.57904]
[1720323834313,1.10822546,3057.5,3057.4,4.57904]
[1720323836112,0.0883578,3057.5,3057.4,4.57904]
[1720323836835,1.10822546,3057.5,3057.4,4.57904]
[1720323837021,0.0883578,3057.5,3057.4,4.57904]
[1720323837580,1.10822546,3057.5,3057.4,4.57904]
[1720323838981,0.0883578,3057.5,3057.4,5.036944]
[1720323840321,0.0883578,3057.5,3057.4,4.57904]
[1720323843597,2.46632232,3057.5,3057.4,4.57904]
[1720323843929,3.48509956,3057.5,3057.4,4.57904]
[1720323845233,2.46632232,3057.5,3057.4,4.57904]
[1720323845420,3.48484802,3057.5,3057.4,4.57904]
[1720323845622,2.46632232,3057.5,3057.4,4.57904]
[1720323845931,3.48481887,3057.5,3057.4,4.57904]
[1720323847407,3.41925435,3057.5,3057.4,4.57904]
[1720323847602,2.4007578,3057.5,3057.4,4.57904]
[1720323849002,3.07930799,3057.5,3057.4,4.57904]
[1720323849205,2.4007578,3057.5,3057.4,4.57904]
[1720323850935,3.08019492,3057.5,3057.4,4.57904]
[1720323851242,2.4007578,3057.5,3057.4,4.57904]
[1720323852435,3.08023073,3057.5,3057.4,4.57904]
[1720323852641,3.08021141,3057.5,3057.4,4.57904]
[1720323853213,2.4007578,3057.5,3057.4,4.57904]
[1720323853914,2.4007578,3057.5,3057.4,4.74104]
[1720323855119,0.0883578,3057.5,3057.4,4.74104]
[1720323855315,0.76791869,3057.5,3057.4,4.74104]
[1720323855725,0.76797928,3057.5,3057.4,4.74104]
[1720323858518,0.76796146,3057.5,3057.4,4.74104]
[1720323859423,0.0883578,3057.5,3057.4,4.74104]
[1720323860052,0.76795679,3057.5,3057.4,4.74104]
[1720323860421,0.0883578,3057.5,3057.4,4.74104]
[1720323860726,1.1077633,3057.5,3057.4,4.74104]
[1720323862047,0.76808806,3057.5,3057.4,6.4011]
[1720323862413,0.76808806,3057.5,3057.4,5.4441]
[1720323865152,0.76821608,3057.5,3057.4,5.4441]
[1720323867455,0.0883578,3057.5,3057.4,5.4441]
[1720323867614,0.76821608,3057.5,3057.4,5.4441]
[1720323868053,0.0883578,3057.5,3057.4,5.4441]
[1720323868550,0.76838763,3057.5,3057.4,5.4441]
[1720323869254,0.0883578,3057.5,3057.4,5.4441]
[1720323869626,0.76838763,3057.5,3057.4,8.69062]
[1720323869832,0.0883578,3057.5,3057.4,11.02002]
[1720323874876,0.0883578,3057.5,3057.4,16.30954]
[1720323879241,0.0883578,3057.5,3057.4,15.35254]
[1720323879438,0.0883578,3057.5,3057.4,14.02002]
[1720323881944,0.0883578,3057.5,3057.4,11.69062]
[1720323884337,0.0883578,3057.5,3057.4,7.74104]
[1720323884561,2.4933578,3057.5,3057.4,7.74104]
[1720323888570,0.0883578,3057.5,3057.4,7.74104]
[1720323893043,0.0883578,3057.5,3057.4,10.03056]
[1720323896360,0.0883578,3057.5,3057.4,7.74104]
[1720323897160,0.0883578,3057.5,3057.4,9.084098]
[1720323901514,0.0883578,3057.5,3057.4,11.373618]
[1720323902973,0.0883578,3057.5,3057.4,13.865518]
[1720323904010,0.0883578,3057.5,3057.4,14.822518]
[1720323905976,0.0883578,3057.5,3057.4,17.662038]
[1720323910332,0.68019385,3058.2,3057.9,2.4983]
[1720323910534,1.3603877,3058.5,3058.2,4.57784]
[1720323910535,0.68019385,3058.3,3058.2,4.57784]
[1720323910699,1.02029078,3058.5,3058.2,4.57784]
[1720323910700,0.68019385,3058.4,3058.3,4.5777]
[1720323911313,0.68019385,3058.5,3058.4,4.57754]
[1720323911494,3.31839078,3058.6,3058.3,2.28885]
[1720323911726,0.68014624,3058.4,3058.3,6.86655]
[1720323913443,0.68014624,3058.5,3058.4,4.57754]
[1720323913736,3.31839078,3058.6,3058.5,4.5774]
[1720323914934,4.57312006,3058.6,3058.5,4.5774]
[1720323915939,3.31799597,3058.6,3058.5,4.5774]
[1720323916112,4.57312776,3058.6,3058.5,4.5774]
[1720323916314,4.57314326,3058.6,3058.5,4.5774]
[1720323916813,3.31807472,3058.6,3058.5,4.5774]
[1720323917616,4.57314974,3058.6,3058.5,4.5774]
[1720323917825,5.93353744,3058.6,3058.5,4.5774]
[1720323918316,4.57314974,3058.6,3058.5,4.5774]
[1720323921830,3.31759065,3058.6,3058.5,4.5774]
[1720323922150,4.57320158,3058.6,3058.5,4.5774]
[1720323922765,3.3173812,3058.6,3058.5,4.5774]
[1720323923263,4.57318946,3058.6,3058.5,4.5774]
[1720323923448,3.31733123,3058.6,3058.5,4.5774]
[1720323923654,3.31737173,3058.6,3058.5,4.5774]
[1720323925237,1.01927173,3058.7,3058.6,2.28862]
[1720323926257,3.73987002,3058.8,3058.7,2.28855]
[1720323926434,7.44124885,3058.8,3058.7,2.28855]
[1720323926635,8.57323467,3058.8,3058.7,2.28855]
[1720323929038,7.21406465,3058.8,3058.7,2.28855]
[1720323929245,9.67140494,3058.8,3058.7,2.28855]
[1720323929471,7.11309784,3058.8,3058.7,2.28855]
[1720323929636,8.31234015,3058.8,3058.7,2.28855]
[1720323930528,7.32533743,3058.8,3058.7,2.28855]
[1720323930762,8.68453968,3058.8,3058.7,2.28855]
[1720323932000,8.68453968,3058.8,3058.7,2.38390358]
[1720323932881,8.6846018,3058.8,3058.7,2.38390358]
[1720323933034,7.3253044,3058.8,3058.7,2.38390358]
[1720323933243,7.32535625,3058.8,3058.7,2.38390358]
[1720323934077,8.68469329,3058.8,3058.7,2.38390358]
[1720323934276,7.32535625,3058.8,3058.7,2.38390358]
[1720323934585,8.68474684,3058.8,3058.7,2.38390358]
[1720323934937,7.32528682,3058.8,3058.7,2.38390358]
[1720323935279,4.76695755,3058.8,3058.7,2.38390358]
[1720323935430,5.89898113,3058.8,3058.7,2.38390358]
[1720323935634,8.61729167,3058.8,3058.7,2.38390358]
[1720323936231,8.6172891,3058.8,3058.7,2.38390358]
[1720323936561,7.25764411,3058.8,3058.7,0.09535358]
[1720323936734,9.45588594,3058.8,3058.7,0.09535358]
[1720323936938,2.4243,3058.7,3058.1,2.28898]
[1720323937172,2.4243,3058.2,3058.1,2.28898]
[1720323937372,4.57612744,3058.2,3058.1,2.28898]
[1720323937986,4.57612744,3058.2,3057.8,2.2892]
[1720323937987,4.64169196,3058.2,3057.8,2.2892]
[1720323938295,1.01964908,3058.0,3057.9,2.28909]
[1720323938474,1.13226796,3058.0,3057.9,2.28909]
[1720323938779,1.01964678,3058.0,3057.9,2.28909]
[1720323939162,2.27561741,3058.0,3057.9,2.28909]
[1720323939504,2.27561741,3058.0,3057.7,2.28927]
[1720323939736,1.01941559,3057.8,3057.7,2.28927]
[1720323939889,1.35923067,3057.9,3057.7,2.28927]
[1720323940083,1.01940422,3057.8,3057.7,2.28927]
[1720323941801,1.42479519,3058.0,3057.8,2.28922]
[1720323942119,2.27573202,3057.9,3057.8,2.28922]
[1720323942326,1.01968952,3057.9,3057.8,2.28922]
[1720323943186,1.01968905,3057.9,3057.8,2.28922]
[1720323943626,1.42479519,3058.0,3057.8,2.28922]
[1720323943804,2.27574276,3057.9,3057.8,2.28922]
[1720323944305,1.01964642,3057.9,3057.8,2.28922]
[1720323944711,4.70007553,3057.9,3057.6,5.28935]
[1720323944920,4.70007553,3057.9,3057.6,2.28935]
[1720323944921,1.01965199,3057.8,3057.6,2.28935]
[1720323945112,1.01965199,3057.8,3057.5,3.0]
[1720323945314,1.08521651,3057.7,3057.5,2.28939]
[1720323945514,1.42479519,3057.7,3057.5,2.28939]
[1720323945722,1.01960456,3057.6,3057.5,2.28939]
[1720323946179,1.01876341,3057.6,3057.4,0.162]
[1720323946475,0.67970415,3057.5,3057.4,2.45152]
[1720323947370,0.74526867,3057.5,3057.4,2.45152]
[1720323947573,3.07756867,3057.5,3057.4,2.45152]
[1720323947746,2.39786452,3057.5,3057.4,2.45152]
[1720323948683,2.39786452,3057.5,3057.4,0.162]
[1720323948832,2.86927404,3057.5,3057.4,0.162]
[1720323949032,5.14542244,3057.5,3057.4,0.162]
[1720323949233,2.86927404,3057.5,3057.4,0.162]
[1720323949470,5.1454521,3057.5,3057.4,0.25426156]
[1720323949642,6.50468277,3057.5,3057.4,0.25426156]
[1720323950231,2.86927404,3057.5,3057.4,0.25426156]
[1720323950434,5.14546528,3057.5,3057.4,0.25426156]
[1720323951359,2.86927404,3057.5,3057.4,0.25426156]
[1720323954610,2.39786452,3057.5,3057.4,0.25426156]
[1720323954734,3.07627,3057.5,3057.4,0.25426156]
[1720323955800,0.74397,3057.7,3057.4,0.25426156]
[1720323956083,0.06556452,3057.7,3057.5,2.28938]
[1720323956537,0.06556452,3057.7,3057.6,0.09226967]
[1720323957555,0.74397,3057.7,3057.6,0.09226967]
[1720323958403,0.06556452,3057.7,3057.6,0.09226967]
[1720323962987,0.74361239,3057.7,3057.6,0.09226967]
[1720323963383,0.06556452,3057.7,3057.6,0.09226967]
[1720323963557,0.74361239,3057.7,3057.6,0.09226967]
[1720323964086,4.77600475,3057.7,3057.6,0.09226967]
[1720323964251,5.90853781,3057.7,3057.6,0.09226967]
[1720323964450,3.75893294,3057.7,3057.4,0.162]
[1720323964700,0.67857244,3057.5,3057.4,0.162]
[1720323964900,0.74413696,3057.5,3057.4,0.162]
[1720323965338,0.67857244,3057.5,3057.4,0.162]
[1720323965643,0.74413696,3057.6,3057.4,2.45152]
[1720323966108,0.74413696,3057.6,3057.5,0.09233203]
[1720323966497,0.06556452,3057.6,3057.5,0.09233203]
[1720323966700,1.87664373,3057.6,3057.5,0.09233203]
[1720323967333,2.21592996,3057.6,3057.5,0.09233203]
[1720323967512,1.89752528,3057.6,3057.5,0.09233203]
[1720323967723,0.76501851,3057.6,3057.5,0.09233203]
[1720323967924,1.19811539,3057.6,3057.5,0.09233203]
[1720323968648,1.87680987,3057.6,3057.5,0.09233203]
[1720323969561,1.13255087,3057.6,3057.5,4.67123203]
[1720323969738,0.67869448,3057.8,3057.6,2.28937]
[1720323970132,0.67869448,3057.8,3057.7,0.09225886]
[1720323970651,1.81109769,3057.8,3057.7,0.09225886]
[1720323970950,0.67869448,3057.8,3057.7,2.38155886]
[1720323971157,2.94351346,3057.8,3057.7,2.38155886]
[1720323971559,2.94349229,3057.8,3057.7,2.38155886]
[1720323972640,2.94349401,3057.8,3057.7,2.38155886]
[1720323973262,3.2826642,3057.8,3057.7,0.09225886]
[1720323973830,3.28349277,3057.8,3057.7,0.09225886]
[1720323974137,3.28349684,3057.8,3057.7,0.09225886]
[1720323974335,6.45742325,3057.8,3057.7,0.09225886]
[1720323974536,9.08244376,3057.8,3057.4,0.162]
[1720323974838,0.67917968,3057.5,3057.4,0.162]
[1720323975019,1.19803097,3057.5,3057.4,0.162]
[1720323976326,2.21679476,3057.5,3057.4,0.162]
[1720323976513,1.65124562,3057.5,3057.4,0.162]
[1720323976714,2.6704264,3057.5,3057.4,0.162]
[1720323977553,2.67050966,3057.5,3057.4,0.162]
[1720323978518,2.21729501,3057.5,3057.4,0.162]
[1720323978924,3.47426853,3057.5,3057.4,0.162]
[1720323979123,2.21775589,3057.5,3057.4,0.162]
[1720323979344,2.55646595,3057.5,3057.4,0.162]
[1720323979764,4.83260564,3057.5,3057.4,0.162]
[1720323980263,6.25961889,3057.5,3057.4,0.162]
[1720323980824,10.83721829,3057.5,3057.4,0.162]
[1720323981238,9.13699793,3057.5,3057.4,0.25434682]
[1720323982469,11.98245085,3057.5,3057.4,0.25434682]
[1720323982642,14.02290564,3057.5,3057.4,0.162]
[1720323982965,14.02290564,3057.5,3057.4,0.25436268]
[1720323983140,14.02290564,3057.5,3057.4,0.162]
[1720323983340,16.16365323,3057.5,3057.4,0.162]
[1720323983551,15.1907321,3057.5,3057.4,0.162]
[1720323983753,19.86071269,3057.5,3057.4,0.162]
[1720323984074,17.82280348,3057.5,3057.4,0.162]
[1720323984868,17.82280348,3057.5,3056.5,2.29018]
[1720323984869,2.4827,3057.4,3056.5,2.29018]
[1720323985028,4.80089303,3056.6,3055.9,2.29058]
[1720323985233,0.68055238,3056.0,3055.9,2.29058]
[1720323985525,0.68013181,3056.0,3055.9,2.29058]
[1720323985730,1.02082857,3056.1,3056.0,2.29057]
[1720323986456,1.02082857,3056.2,3056.0,2.29057]
[1720323986767,1.02082857,3056.2,3055.8,2.29072]
[1720323986768,2.04339309,3056.2,3055.8,2.29072]